bitfinex/quotes_SOLUSD_20260102
["timestamp","ask_amount","ask_price","bid_price","bid_amount"]
[1767332861480,0.07,127.07,127.04,9.92978646]
[1767332861667,0.07,127.07,127.05,0.69572037]
[1767332863471,0.1,127.08,127.05,8.56659476]
[1767332863672,0.1,127.1,127.08,0.5946864]
[1767332864474,0.7753805,127.1,127.08,0.5946864]
[1767332867955,0.7753805,127.1,127.07,2.05842637]
[1767332868160,2.83380687,127.1,127.06,10.42308409]
[1767332868362,0.7753805,127.1,127.06,10.42308409]
[1767332869784,0.7753805,127.1,127.06,9.92839769]
[1767332870075,0.7753805,127.1,127.06,10.42308409]
[1767332870280,0.7753805,127.1,127.07,0.4946864]
[1767332872861,0.7753805,127.1,127.07,8.36434556]
[1767332874478,2.15842637,127.11,127.07,7.86965916]
[1767332874681,0.1,127.11,127.09,0.3946864]
[1767332874878,0.1,127.11,127.09,2.45311277]
[1767332879588,0.1,127.11,127.09,10.32147737]
[1767332880895,0.1,127.11,127.09,2.45311277]
[1767332881083,0.71421622,127.1,127.07,2.45311277]
[1767332882093,0.71421622,127.1,127.07,10.32270188]
[1767332884498,0.71421622,127.1,127.07,11.47794291]
[1767332885494,0.81421622,127.11,127.08,0.3946864]
[1767332885696,0.71421622,127.1,127.07,0.3946864]
[1767332886375,0.71421622,127.1,127.06,11.08350866]
[1767332886580,0.71421622,127.1,127.06,11.47819506]
[1767332888704,0.71421622,127.1,127.07,11.47793445]
[1767332888997,0.81421622,127.11,127.08,3.6083538]
[1767332890499,0.81421622,127.11,127.08,0.3946864]
[1767332891303,0.1,127.11,127.09,3.2136674]
[1767332891495,0.1,127.11,127.1,3.6083538]
[1767332891702,0.1,127.11,127.1,0.3946864]
[1767332896202,0.81421622,127.11,127.08,8.26374526]
[1767332898996,0.81421622,127.11,127.08,11.47741266]
[1767332906819,3.89640536,127.1,127.05,61.2]
[1767332907016,0.68273796,127.08,127.05,0.3946864]
[1767332907216,0.68273796,127.08,127.05,3.6083538]
[1767332908413,0.68273796,127.08,127.05,11.47906686]
[1767332908818,0.68273796,127.08,127.05,8.26539946]
[1767332909002,0.68273796,127.08,127.05,11.47906686]
[1767332909512,0.68273796,127.08,127.05,8.26539946]
[1767332909717,0.68273796,127.08,127.05,11.47906686]
[1767332915938,0.68273796,127.08,127.06,3.2136674]
[1767332917030,0.1,127.11,127.06,11.08352477]
[1767332917333,0.78273796,127.11,127.08,3.2136674]
[1767332918933,0.78273796,127.11,127.08,11.47739905]
[1767332920038,3.3136674,127.11,127.06,14.38]
[1767332920220,0.68273796,127.08,127.05,8.26524697]
[1767332920413,3.89640536,127.08,127.05,8.26524697]
[1767332920614,0.68273796,127.08,127.05,8.26524697]
[1767332922938,0.68273796,127.08,127.05,11.47891437]
[1767332928124,3.89640536,127.08,127.05,8.26524697]
[1767332928424,0.68273796,127.08,127.05,11.47891437]
[1767332932230,0.68273796,127.08,127.05,8.26524697]
[1767332932431,0.68273796,127.08,127.05,11.47891437]
[1767332934158,0.68273796,127.08,127.06,11.08394478]
[1767332935929,0.1,127.11,127.06,11.08394478]
[1767332936129,0.77213964,127.11,127.08,3.6083538]
[1767332936342,0.77213964,127.11,127.09,3.2136674]
[1767332936744,0.77213964,127.11,127.09,3.6083538]
[1767332938850,0.77213964,127.11,127.08,7.86854403]
[1767332939160,0.77213964,127.11,127.09,3.2136674]
[1767332941757,0.77213964,127.11,127.08,11.47689783]
[1767332942461,0.77213964,127.11,127.08,8.26323043]
[1767332942661,0.77213964,127.11,127.08,11.47689783]
[1767332944456,0.77213964,127.11,127.08,10.31970117]
[1767332948565,0.77213964,127.11,127.09,2.05647074]
[1767332948762,0.77213964,127.11,127.08,10.31970117]
[1767332949764,0.77213964,127.11,127.08,7.86854403]
[1767332954860,0.77213964,127.11,127.08,9.92501477]
[1767332955375,0.77213964,127.11,127.08,10.31970117]
[1767332960275,0.77213964,127.11,127.08,9.92501477]
[1767332960482,0.80209443,127.11,127.08,10.31970117]
[1767332965184,0.1,127.11,127.09,2.05647074]
[1767332965390,0.1,127.11,127.09,2.45115714]
[1767332966776,0.77211363,127.11,127.09,2.45115714]
[1767332968988,0.77211363,127.11,127.09,2.05647074]
[1767332974394,0.77211363,127.11,127.09,2.45115714]
[1767332975068,0.1,127.11,127.09,2.45115714]
[1767332975270,0.1,127.11,127.1,2.45115714]
[1767332976069,0.77211363,127.11,127.08,9.92523251]
[1767332976470,0.77211363,127.11,127.09,0.68207619]
[1767332977890,0.1,127.11,127.09,0.68207619]
[1767332979771,0.1,127.11,127.09,2.73854693]
[1767332980189,0.1,127.11,127.1,0.68207619]
[1767332981095,0.1,127.11,127.09,10.60664539]
[1767332981272,0.1,127.13,127.11,0.68207619]
[1767332981473,0.1,127.13,127.11,2.73854693]
[1767332984603,0.1,127.13,127.11,10.60570608]
[1767332986895,0.1,127.13,127.12,2.05647074]
[1767332987394,0.1,127.13,127.12,1.33147074]
[1767332987598,0.67211363,127.12,127.1,9.92406833]
[1767332987802,0.77211363,127.13,127.1,10.60614452]
[1767333000608,0.77211363,127.13,127.11,8.53316686]
[1767333000808,0.1,127.13,127.11,10.5896376]
[1767333001008,0.1,127.14,127.12,2.72255938]
[1767333001900,0.70135775,127.13,127.12,2.05647074]
[1767333002305,0.80135775,127.14,127.12,2.05647074]
[1767333004512,0.80135775,127.14,127.12,3.21147702]
[1767333004907,0.80135775,127.14,127.12,11.07801411]
[1767333005910,0.1,127.14,127.13,3.21147702]
[1767333009009,0.1,127.14,127.12,11.74403254]
[1767333009693,0.70135775,127.13,127.1,0.66608864]
[1767333010008,0.70135775,127.12,127.09,61.2]
[1767333010194,0.70135775,127.12,127.08,11.7462757]
[1767333011205,0.70135775,127.11,127.08,11.7462757]
[1767333011509,0.70135775,127.11,127.09,0.66608864]
[1767333012092,3.21147702,127.13,127.09,8.53445423]
[1767333012292,0.70135775,127.12,127.09,8.53445423]
[1767333012892,3.91283477,127.12,127.09,8.53445423]
[1767333013306,0.70135775,127.12,127.09,8.53445423]
[1767333015913,0.70135775,127.12,127.09,11.74593125]
[1767333016109,0.70135775,127.13,127.1,11.74520701]
[1767333027026,0.70135775,127.13,127.1,8.53372999]
[1767333027324,0.70135775,127.13,127.1,11.74520701]
[1767333027828,0.70135775,127.13,127.1,11.07911837]
[1767333028123,0.70135775,127.13,127.09,11.74755587]
[1767333028803,0.70135775,127.13,127.1,3.21147702]
[1767333029002,0.70135775,127.13,127.1,3.87911619]
[1767333030025,0.70135775,127.13,127.1,11.74684854]
[1767333040328,0.70135775,127.13,127.1,8.53537152]
[1767333043632,0.70135775,127.13,127.1,11.74684854]
[1767333043827,0.67135775,127.13,127.1,11.74684854]
[1767333044736,0.1,127.14,127.11,0.66763917]
[1767333045228,0.1,127.14,127.11,8.53466553]
[1767333045415,0.1,127.14,127.11,11.74614255]
[1767333045823,0.79989636,127.14,127.11,11.74614255]
[1767333046029,0.1,127.14,127.12,3.87911619]
[1767333046531,0.1,127.14,127.13,0.66763917]
[1767333046738,0.1,127.14,127.12,3.21147702]
[1767333046938,0.1,127.14,127.12,3.87911619]
[1767333047133,0.1,127.14,127.12,11.74568054]
[1767333047737,0.79989636,127.14,127.12,11.74568054]
[1767333048639,0.79989636,127.14,127.11,11.74611488]
[1767333055346,0.1,127.14,127.13,0.68122832]
[1767333055529,0.1,127.14,127.13,3.89270534]
[1767333055927,0.1,127.14,127.13,0.68122832]
[1767333057648,0.1,127.14,127.13,3.89270534]
[1767333057841,0.1,127.14,127.13,0.68122832]
[1767333059346,0.1,127.14,127.13,3.89270534]
[1767333060156,0.82201085,127.16,127.13,11.75866931]
[1767333060453,0.82201085,127.19,127.16,0.68122832]
[1767333060646,0.82201085,127.19,127.15,0.68122832]
[1767333060854,0.82201085,127.19,127.15,3.89270534]
[1767333061056,0.72201085,127.18,127.15,3.89270534]
[1767333061352,0.72201085,127.18,127.15,0.68122832]
[1767333062558,0.72201085,127.18,127.15,7.86462353]
[1767333064758,0.72201085,127.18,127.15,11.75732887]
[1767333066456,0.72201085,127.18,127.15,10.60025815]
[1767333069563,0.72201085,127.18,127.15,0.68122832]
[1767333069763,0.72201085,127.18,127.15,2.73563462]
[1767333071361,2.77641715,127.17,127.14,0.68122832]
[1767333071563,2.0544063,127.17,127.14,0.68122832]
[1767333071778,0.72201085,127.16,127.14,0.68122832]
[1767333071949,0.72201085,127.16,127.13,8.54699107]
[1767333072149,0.72201085,127.16,127.13,0.68122832]
[1767333072350,0.72201085,127.16,127.13,8.54714212]
[1767333072655,0.72201085,127.16,127.13,10.60154842]
[1767333074455,0.72201085,127.16,127.13,8.54714212]
[1767333075269,0.72201085,127.16,127.13,10.60154842]
[1767333079675,0.72201085,127.16,127.13,8.54714212]
[1767333079878,0.72201085,127.16,127.13,10.60154842]
[1767333080771,0.72201085,127.16,127.14,0.68122832]
[1767333081971,22.32254641,127.19,127.14,2.73563462]
[1767333082164,0.72201085,127.17,127.14,2.73563462]
[1767333082366,0.72201085,127.17,127.14,0.68122832]
[1767333083272,0.72201085,127.16,127.13,8.54714212]
[1767333083480,0.69201085,127.16,127.13,10.60154842]
[1767333086081,0.69201085,127.16,127.13,10.59378947]
[1767333086682,0.6823,127.17,127.14,0.67346937]
[1767333088601,0.6823,127.17,127.14,8.53862878]
[1767333089304,0.6823,127.17,127.14,0.67346937]
[1767333090671,0.6523,127.17,127.14,0.67346937]
[1767333094498,0.6523,127.17,127.14,10.59310914]
[1767333094673,15.17828806,127.19,127.16,0.66017974]
[1767333094867,0.71828806,127.18,127.16,0.66017974]
[1767333097196,0.1,127.19,127.17,0.66017974]
[1767333099200,0.81828806,127.19,127.17,0.66017974]
[1767333099885,0.81828806,127.19,127.16,9.91838098]
[1767333100088,0.81828806,127.19,127.16,10.57856072]
[1767333105807,0.81828806,127.19,127.16,8.52415442]
[1767333105983,0.81828806,127.19,127.16,10.57856072]
[1767333108207,0.81828806,127.19,127.17,0.66017974]
[1767333111589,0.1,127.19,127.17,0.66017974]
[1767333111790,0.1,127.19,127.17,8.52339188]
[1767333112815,0.81828806,127.19,127.17,7.86321214]
[1767333113988,0.81828806,127.19,127.17,8.56233137]
[1767333114195,2.87269436,127.19,127.17,8.56233137]
[1767333114391,0.81828806,127.19,127.17,8.56233137]
[1767333114615,1e-08,127.19,127.17,28.22105591]
[1767333114826,0.1,127.2,127.17,28.22105591]
[1767333115323,1e-08,127.2,127.18,0.69911923]
[1767333115497,1e-08,127.2,127.19,0.69911923]
[1767333115696,1e-08,127.2,127.19,8.56137255]
[1767333117623,1e-08,127.2,127.19,0.69911923]
[1767333118217,1e-08,127.2,127.18,7.86257121]
[1767333118424,1e-08,127.2,127.18,8.56169044]
[1767333118896,2.0544063,127.19,127.18,7.86257121]
[1767333119096,2.30143185,127.19,127.16,0.69911923]
[1767333119314,2.30143185,127.19,127.16,8.56291201]
[1767333121027,0.24702555,127.19,127.16,8.56291201]
[1767333121330,2.30143185,127.19,127.16,8.56291201]
[1767333121625,1e-08,127.2,127.16,7.86379278]
[1767333121823,2.30143186,127.2,127.17,0.69911923]
[1767333122630,2.30143186,127.2,127.17,8.56244547]
[1767333125919,2.30143186,127.2,127.17,7.86332624]
[1767333126311,1e-08,127.2,127.18,0.69911923]
[1767333126515,1e-08,127.2,127.19,0.69911923]
[1767333127109,1e-08,127.2,127.19,7.86225332]
[1767333128202,1e-08,127.2,127.19,8.56137255]
[1767333128602,1e-08,127.2,127.19,7.86225332]
[1767333128804,1e-08,127.2,127.19,8.56137255]
[1767333135132,16.44095916,127.23,127.19,3.20841149]
[1767333135312,16.44095916,127.23,127.21,0.69911923]
[1767333136725,16.44095916,127.23,127.21,8.56007514]
[1767333139126,16.44095916,127.23,127.21,0.69911923]
[1767333140810,16.44095916,127.23,127.21,8.56001326]
[1767333141030,1e-08,127.23,127.22,0.69911923]
[1767333142743,0.1,127.26,127.21,11.06930552]
[1767333142923,0.1,127.26,127.24,0.69911923]
[1767333143239,0.1,127.26,127.25,0.69911923]
[1767333145839,0.1,127.26,127.24,0.70987031]
[1767333146136,3.20841149,127.25,127.23,0.70987031]
[1767333146314,3.65543705,127.26,127.23,0.70987031]
[1767333146862,0.1,127.26,127.24,11.06714309]
[1767333147029,0.1,127.26,127.25,11.77682796]
[1767333147225,3.55543705,127.29,127.26,0.70987031]
[1767333147417,3.55543705,127.29,127.26,0.67057992]
[1767333148231,3.20841149,127.29,127.24,11.06734474]
[1767333148433,0.48631595,127.28,127.24,11.06734474]
[1767333148736,0.48631595,127.28,127.22,34.01026226]
[1767333148737,3.20841149,127.27,127.23,11.06804272]
[1767333149038,3.69472744,127.27,127.23,11.06804272]
[1767333149448,3.69472744,127.27,127.24,0.70987031]
[1767333150545,7.85685662,127.28,127.23,8.56950154]
[1767333150546,3.20841149,127.26,127.23,8.56950154]
[1767333150719,3.69472744,127.27,127.24,0.70987031]
[1767333150919,3.20841149,127.26,127.24,0.70987031]
[1767333151840,3.69472744,127.27,127.24,0.70987031]
[1767333152237,3.69472744,127.26,127.23,0.70987031]
[1767333152543,0.48631595,127.26,127.23,0.70987031]
[1767333152744,3.69472744,127.26,127.23,0.70987031]
[1767333154047,3.69472744,127.25,127.22,0.70987031]
[1767333157643,3.20841149,127.26,127.22,8.57021602]
[1767333157945,3.69472744,127.28,127.25,0.70987031]
[1767333158449,18.05472744,127.29,127.25,3.9182818]
[1767333158627,18.05472744,127.29,127.26,0.70987031]
[1767333160550,3.20841149,127.28,127.26,0.70987031]
[1767333166054,3.69472744,127.28,127.25,0.70987031]
[1767333167435,3.20841149,127.28,127.25,0.70987031]
[1767333167840,3.69472744,127.28,127.25,0.70987031]
[1767333170163,3.20841149,127.27,127.23,11.06802094]
[1767333170366,3.69472744,127.27,127.24,0.70987031]
[1767333178343,3.20841149,127.27,127.24,0.70987031]
[1767333181054,3.69472744,127.27,127.24,0.70987031]
[1767333181367,3.69472744,127.26,127.23,0.68537021]
[1767333182067,3.69472744,127.25,127.21,0.68537021]
[1767333182365,3.69472744,127.25,127.22,0.68537021]
[1767333182558,0.48631595,127.25,127.22,0.68537021]
[1767333187279,3.69472744,127.25,127.22,0.68537021]
[1767333190471,2.53866971,127.25,127.22,0.68537021]
[1767333191368,2.05235376,127.24,127.22,0.68537021]
[1767333192574,2.53866971,127.25,127.22,0.68537021]
[1767333196368,2.05235376,127.24,127.22,0.68537021]
[1767333197667,2.05235376,127.26,127.23,0.68537021]
[1767333198390,2.53866971,127.26,127.23,0.68537021]
[1767333198796,0.48631595,127.24,127.21,9.91312452]
[1767333198996,2.05235376,127.25,127.22,7.86013842]
[1767333199292,2.53866971,127.26,127.23,0.68537021]
[1767333205001,2.05235376,127.26,127.22,7.86013842]
[1767333205187,2.53866971,127.25,127.22,0.70396201]
[1767333205708,0.48631595,127.25,127.22,0.70396201]
[1767333207006,14.36,127.27,127.23,7.85978149]
[1767333207304,14.84631595,127.27,127.24,0.70396201]
[1767333208402,0.48631595,127.27,127.24,0.70396201]
[1767333209502,2.53866971,127.27,127.24,0.70396201]
[1767333210001,0.48631595,127.27,127.24,0.70396201]
[1767333211398,2.05235376,127.27,127.25,0.70396201]
[1767333211698,2.53866971,127.27,127.25,0.70396201]
[1767333211906,2.53866971,127.27,127.24,0.70396201]
[1767333212503,22.21645363,127.29,127.24,0.70396201]
[1767333212701,2.53866971,127.28,127.25,0.70396201]
[1767333216012,0.48631595,127.28,127.25,0.70396201]
[1767333216185,2.53866971,127.28,127.25,0.70396201]
[1767333217712,0.48631595,127.28,127.25,0.70396201]
[1767333217912,2.53866971,127.28,127.25,0.70396201]
[1767333222322,0.48631595,127.28,127.25,0.70396201]
[1767333222497,2.53866971,127.28,127.25,0.70396201]
[1767333227420,0.48631595,127.28,127.25,0.70396201]
[1767333227619,2.53866971,127.28,127.25,0.70396201]
[1767333227828,2.05235376,127.26,127.22,7.8600398]
[1767333228022,2.53866971,127.26,127.23,0.70396201]
[1767333230233,0.48631595,127.26,127.23,0.70396201]
[1767333230528,2.53866971,127.26,127.23,0.70396201]
[1767333231627,0.48631595,127.26,127.23,0.70396201]
[1767333231823,2.53866971,127.26,127.23,0.70396201]
[1767333239019,2.05235376,127.26,127.23,0.70396201]
[1767333239225,0.48631595,127.25,127.23,0.70396201]
[1767333239525,0.48631595,127.25,127.22,9.91239356]
[1767333239526,0.48631595,127.25,127.22,7.8600398]
[1767333239705,2.53866971,127.25,127.22,8.5852539]
[1767333243224,2.53866971,127.25,127.22,7.8603057]
[1767333243527,2.53866971,127.25,127.23,0.7249482]
[1767333244113,2.53866971,127.25,127.22,8.5852539]
[1767333248329,9.91098812,127.25,127.2,16.41235376]
[1767333248512,0.48631595,127.24,127.21,0.7249482]
[1767333248712,2.53866971,127.24,127.21,0.7249482]
[1767333250734,0.48631595,127.24,127.21,0.7249482]
[1767333251632,0.48631595,127.26,127.21,11.06809469]
[1767333251824,3.2073237,127.26,127.23,0.7249482]
[1767333252335,3.69363965,127.26,127.23,0.7249482]
[1767333265141,3.2073237,127.26,127.23,0.7249482]
[1767333267750,3.69363965,127.26,127.23,0.7249482]
[1767333277871,3.2073237,127.25,127.23,0.7249482]
[1767333279368,3.69363965,127.26,127.23,0.7249482]
[1767333283978,3.69363965,127.26,127.22,0.71608598]
[1767333284180,3.2073237,127.25,127.22,0.71608598]
[1767333285398,3.69363965,127.26,127.22,0.71608598]
[1767333286378,0.48631595,127.26,127.22,0.71608598]
[1767333286572,3.69363965,127.26,127.22,0.71608598]
[1767333290894,0.48631595,127.26,127.22,0.71608598]
[1767333291294,0.48631595,127.26,127.22,7.85993747]
[1767333291498,0.48631595,127.26,127.23,0.71608598]
[1767333294997,3.69363965,127.27,127.23,0.71608598]
[1767333296597,3.2073237,127.26,127.23,0.71608598]
[1767333300725,4.10312614,127.29,127.26,0.71572762]
[1767333300875,1.68944209,127.29,127.28,3.2073237]
[1767333301075,0.1,127.31,127.28,3.177787]
[1767333301781,0.80750565,127.31,127.28,3.177787]
[1767333305220,0.1,127.31,127.28,3.177787]
[1767333305402,0.1,127.31,127.29,3.2073237]
[1767333307726,0.1,127.31,127.28,22.21642873]
[1767333307925,0.1,127.31,127.29,3.2073237]
[1767333309230,0.80750565,127.31,127.29,11.06321081]
[1767333309403,0.80750565,127.31,127.3,3.2073237]
[1767333309604,0.80750565,127.31,127.28,3.2073237]
[1767333309900,0.80750565,127.31,127.28,25.42392332]
[1767333311828,0.80750565,127.31,127.28,3.2073237]
[1767333312002,0.80750565,127.31,127.28,11.06398481]
[1767333312200,0.80750565,127.31,127.28,7.85666111]
[1767333312404,0.80750565,127.31,127.28,11.06398481]
[1767333312630,0.80750565,127.31,127.28,9.90680869]
[1767333313432,0.80750565,127.31,127.28,7.85666111]
[1767333313606,0.80750565,127.31,127.28,9.90680869]
[1767333318122,0.80750565,127.31,127.28,7.85666111]
[1767333319333,0.80750565,127.31,127.28,10.62253631]
[1767333321537,0.80750565,127.31,127.28,8.57238873]
[1767333321729,0.80750565,127.31,127.28,10.62253631]
[1767333323939,0.1,127.31,127.29,2.05014758]
[1767333324126,0.82284378,127.31,127.28,24.97008903]
[1767333324321,0.82284378,127.31,127.28,8.57994145]
[1767333327658,0.82284378,127.31,127.28,10.63008903]
[1767333328334,0.82284378,127.31,127.28,7.85666111]
[1767333334537,0.82284378,127.31,127.28,9.90680869]
[1767333338659,0.82284378,127.31,127.28,10.62125161]
[1767333341149,0.1,127.31,127.29,0.71444292]
[1767333343467,0.78718455,127.31,127.28,10.62125161]
[1767333343964,0.78718455,127.31,127.29,0.71444292]
[1767333344262,0.1,127.31,127.29,0.71444292]
[1767333344465,0.1,127.31,127.29,2.7645905]
[1767333345558,0.1,127.31,127.29,0.71444292]
[1767333348148,0.78718455,127.31,127.29,0.71444292]
[1767333348344,0.68718455,127.35,127.31,0.625]
[1767333348666,0.68718455,127.35,127.32,2.05014758]
[1767333349050,0.68718455,127.35,127.32,0.525]
[1767333349564,0.68718455,127.35,127.31,2.57514758]
[1767333349963,0.68718455,127.35,127.32,0.525]
[1767333351269,0.68718455,127.35,127.32,2.57514758]
[1767333352172,0.68718455,127.35,127.32,10.4291329]
[1767333352674,0.68718455,127.35,127.33,2.05014758]
[1767333353051,0.68718455,127.35,127.33,2.57514758]
[1767333353253,0.68718455,127.35,127.33,10.4285466]
[1767333354060,2.05014758,127.37,127.33,10.4285466]
[1767333354266,0.65980052,127.36,127.33,10.4285466]
[1767333354668,2.05014758,127.38,127.33,9.9035466]
[1767333354870,0.65980052,127.38,127.35,0.525]
[1767333355067,0.65980052,127.38,127.35,2.57514758]
[1767333356173,0.65980052,127.38,127.35,0.525]
[1767333356379,0.65980052,127.37,127.34,8.37741983]
[1767333356554,0.65980052,127.36,127.33,10.42847892]
[1767333356955,0.65980052,127.36,127.32,10.42912978]
[1767333357870,0.65980052,127.36,127.33,0.525]
[1767333359479,0.65980052,127.36,127.32,9.90412978]
[1767333359678,0.65980052,127.36,127.32,10.42912978]
[1767333361860,0.65980052,127.36,127.32,8.3789822]
[1767333362066,0.65980052,127.35,127.32,8.3789822]
[1767333363072,0.65980052,127.35,127.32,7.8539822]
[1767333363273,0.65980052,127.35,127.32,8.3789822]
[1767333363790,0.65980052,127.35,127.32,10.42912978]
[1767333369990,0.65980052,127.35,127.32,8.3789822]
[1767333370290,0.65980052,127.35,127.32,10.42912978]
[1767333370882,0.65980052,127.35,127.32,30.06469371]
[1767333372495,0.65980052,127.36,127.33,11.5789146]
[1767333374191,3.20088165,127.37,127.34,0.525]
[1767333374397,0.65980052,127.37,127.34,8.37788457]
[1767333374796,0.65980052,127.38,127.35,0.525]
[1767333376300,0.65980052,127.38,127.35,8.37698463]
[1767333386825,0.661064,127.37,127.34,11.57859612]
[1767333391536,0.661064,127.37,127.34,8.37771447]
[1767333391829,0.661064,127.37,127.34,11.57859612]
[1767333392926,0.661064,127.37,127.34,8.37771447]
[1767333393129,0.661064,127.37,127.34,11.57859612]
[1767333395327,0.661064,127.37,127.34,8.37771447]
[1767333396031,0.661064,127.37,127.34,11.57859612]
[1767333400930,0.761064,127.39,127.36,0.525]
[1767333401523,0.761064,127.39,127.35,3.72588165]
[1767333401831,0.761064,127.39,127.35,3.20088165]
[1767333402041,0.761064,127.39,127.36,0.525]
[1767333404239,0.761064,127.39,127.36,3.72588165]
[1767333405130,0.761064,127.39,127.36,0.525]
[1767333405335,0.761064,127.39,127.36,3.72588165]
[1767333405942,0.761064,127.39,127.36,0.525]
[1767333406134,0.761064,127.39,127.36,3.72588165]
[1767333409552,0.761064,127.39,127.36,11.57748553]
[1767333410030,0.1,127.39,127.37,3.72588165]
[1767333410235,0.1,127.39,127.37,0.525]
[1767333411342,0.1,127.39,127.37,3.20088165]
[1767333411544,0.1,127.39,127.38,0.525]
[1767333412549,0.1,127.39,127.37,3.72588165]
[1767333413125,0.1,127.39,127.37,11.5769315]
[1767333415148,0.1,127.39,127.37,8.37604985]
[1767333416752,0.81491385,127.39,127.37,8.37604985]
[1767333417445,0.1,127.39,127.37,11.5769315]
[1767333424872,0.1,127.39,127.37,8.37604985]
[1767333425164,0.1,127.39,127.37,11.5769315]
[1767333430260,0.81491385,127.39,127.37,11.5769315]
[1767333431764,16.30829976,127.41,127.38,3.88153902]
[1767333432668,16.30829976,127.41,127.38,2.72736457]
[1767333433349,16.30829976,127.41,127.38,10.57770891]
[1767333433770,0.71491385,127.4,127.38,10.57770891]
[1767333434657,0.71491385,127.4,127.37,7.85090143]
[1767333434864,0.71491385,127.4,127.37,9.89760863]
[1767333435165,0.71491385,127.4,127.38,10.57749265]
[1767333436869,17.02321361,127.41,127.38,10.57749265]
[1767333437839,0.71491385,127.45,127.4,2.0467072]
[1767333438044,0.71491385,127.45,127.41,2.0467072]
[1767333438245,0.71491385,127.44,127.4,2.0467072]
[1767333439875,0.71491385,127.44,127.41,7.84867749]
[1767333443147,0.71491385,127.44,127.41,9.89538469]
[1767333448068,0.71491385,127.44,127.4,9.89600076]
[1767333452885,0.71491385,127.44,127.41,2.0467072]
[1767333458490,0.65738415,127.42,127.37,15.0]
[1767333458665,0.65738415,127.4,127.37,7.8508349]
[1767333459181,0.65738415,127.4,127.37,9.8975421]
[1767333460590,0.65738415,127.4,127.36,7.85175879]
[1767333460796,0.65738415,127.39,127.35,7.85213729]
[1767333461000,0.65738415,127.38,127.35,9.89884449]
[1767333466296,0.65738415,127.38,127.35,7.85213729]
[1767333466495,0.65738415,127.38,127.35,9.89884449]
[1767333467698,0.65738415,127.38,127.35,7.85213729]
[1767333467884,0.65738415,127.38,127.35,9.89884449]
[1767333468198,0.65738415,127.38,127.34,85.43941701]
[1767333468896,0.65738415,127.38,127.34,71.09941701]
[1767333470083,0.65738415,127.38,127.35,2.0467072]
[1767333470484,0.65738415,127.38,127.35,9.89854319]
[1767333477007,0.65738415,127.38,127.36,2.0467072]
[1767333479297,0.65738415,127.38,127.36,9.89842103]
[1767333480603,0.65738415,127.38,127.35,9.89908254]
[1767333481597,2.0467072,127.4,127.35,9.89908254]
[1767333481803,0.66640413,127.39,127.36,2.0467072]
[1767333482406,0.66640413,127.39,127.35,7.85237534]
[1767333482607,0.66640413,127.39,127.36,2.0467072]
[1767333484281,0.13640413,127.39,127.36,2.0767072]
[1767333489310,0.13640413,127.39,127.36,0.03]
[1767333489491,0.13640413,127.39,127.36,2.0767072]
[1767333489694,0.13640413,127.39,127.37,7.85114234]
[1767333494512,0.13640413,127.39,127.36,11.08080218]
[1767333500720,0.13640413,127.39,127.36,7.85175879]
[1767333501027,0.66640413,127.38,127.36,7.85175879]
[1767333507613,0.66640413,127.38,127.36,8.38175879]
[1767333509432,3.19904339,127.41,127.36,11.58080218]
[1767333509724,3.19904339,127.41,127.37,0.67971111]
[1767333509902,3.19904339,127.41,127.37,8.53063931]
[1767333510097,3.19904339,127.4,127.37,7.8509282]
[1767333511221,3.19904339,127.38,127.34,61.87971111]
[1767333511420,0.71610403,127.36,127.33,0.67971111]
[1767333511621,0.71610403,127.36,127.33,3.19904339]
[1767333511827,0.71610403,127.36,127.34,0.67971111]
[1767333512027,0.71610403,127.36,127.34,8.53238974]
[1767333512630,3.19904339,127.38,127.34,8.53238974]
[1767333512810,3.91514742,127.38,127.35,0.67971111]
[1767333513230,0.71610403,127.38,127.35,0.67971111]
[1767333513725,0.71610403,127.37,127.35,0.67971111]
[1767333513908,182.82079979,127.42,127.33,7.85317719]
[1767333513909,0.71610403,127.35,127.33,7.85317719]
[1767333518128,3.19904339,127.35,127.32,22.87370556]
[1767333518333,0.71610403,127.34,127.32,22.87370556]
[1767333518830,0.71610403,127.34,127.32,8.53370556]
[1767333521737,0.71610403,127.34,127.32,7.85399445]
[1767333522534,0.71610403,127.34,127.32,8.53370556]
[1767333523135,0.71610403,127.34,127.31,7.85456335]
[1767333523339,3.91514742,127.35,127.31,8.53427446]
[1767333523532,0.71610403,127.34,127.31,8.53427446]
[1767333531749,0.71610403,127.34,127.31,11.73331785]
[1767333532245,0.71610403,127.34,127.31,8.53427446]
[1767333536553,0.71610403,127.34,127.31,11.73331785]
[1767333540574,0.71610403,127.34,127.31,8.53427446]
[1767333540761,0.71610403,127.34,127.31,7.85456335]
[1767333542169,3.19904339,127.35,127.31,7.85456335]
[1767333542170,3.19904339,127.35,127.31,11.05360674]
[1767333542364,0.71594675,127.35,127.32,0.69745326]
[1767333542561,0.71594675,127.35,127.32,8.55167872]